fUST/lending_fUST_20250208
["ID","MTS","AMOUNT","RATE_DAILY","PERIOD"]
[352211982,1738999846083,-500.0,0.00011643,2]
[352211983,1738999846093,-951.9,0.00011643,2]
[352211984,1738999846103,-500.0,0.00011643,2]
[352211985,1738999846113,-889.27,0.00011643,2]
[352211986,1738999846122,-815.22,0.00011643,2]
[352211987,1738999846132,-500.0,0.00011643,2]
[352211988,1738999846141,-172.129493,0.00011643,2]
[352211989,1738999846150,-172.129493,0.00011643,2]
[352211990,1738999846160,-500.0,0.00011643,2]
[352211991,1738999846170,-500.0,0.00011643,2]
[352211992,1738999846180,-500.0,0.00011643,2]
[352211993,1738999846190,-500.0,0.00011643,2]
[352211994,1738999846204,-649.54,0.00011643,2]
[352211995,1738999846214,-743.18,0.00011643,2]
[352211996,1738999846224,-500.0,0.00011643,2]
[352211997,1738999846234,-500.0,0.00011643,2]
[352211998,1738999846244,-500.0,0.00011643,2]
[352211999,1738999846253,-1497.02,0.00011643,2]
[352212000,1738999846263,-151.0,0.00011643,2]
[352212001,1738999846272,-500.0,0.00011643,2]
[352212002,1738999846282,-500.0,0.00011643,2]
[352212003,1738999846291,-514.87344771,0.00011643,2]
[352212004,1738999846301,-500.0,0.00011643,2]
[352212005,1738999846312,-500.0,0.00011643,2]
[352212006,1738999846321,-1513.32,0.00011643,2]
[352212007,1738999846331,-500.0,0.00011643,2]
[352212008,1738999846340,-1090.89,0.00011643,2]
[352212009,1738999846350,-500.0,0.00011643,2]
[352212010,1738999846360,-503.04869376,0.00011643,2]
[352212011,1738999846369,-500.0,0.00011643,2]
[352212012,1738999846379,-500.0,0.00011643,2]
[352212013,1738999846388,-500.0,0.00011643,2]
[352212014,1738999846398,-435.42802,0.00011643,2]
[352212015,1738999846407,-435.42802,0.00011643,2]
[352212016,1738999846417,-693.0,0.00011643,2]
[352212017,1738999846426,-500.0,0.00011643,2]
[352212018,1738999846436,-500.0,0.00011643,2]
[352212019,1738999846446,-500.0,0.00011643,2]
[352212020,1738999846458,-151.0,0.00011643,2]
[352212022,1738999846468,-151.0,0.00011643,2]
[352212023,1738999846478,-500.0,0.00011643,2]
[352212024,1738999846488,-1747.5,0.00011643,2]
[352212025,1738999846499,-151.0,0.00011643,2]
[352212026,1738999846509,-500.0,0.00011643,2]
[352212027,1738999846518,-152.525797,0.00011643,2]
[352212028,1738999846528,-500.0,0.00011643,2]
[352212029,1738999846538,-151.0,0.00011643,2]
[352212030,1738999846548,-271.22721,0.00011643,2]
[352212031,1738999846557,-221.643454,0.00011643,2]
[352212032,1738999846567,-271.22721,0.00011643,2]
[352212033,1738999846576,-221.643454,0.00011643,2]
[352212034,1738999846586,-500.0,0.00011643,2]
[352212035,1738999846596,-500.0,0.00011643,2]
[352212036,1738999846606,-500.0,0.00011643,2]
[352212037,1738999846615,-500.0,0.00011643,2]
[352212038,1738999846625,-500.0,0.00011643,2]
[352212039,1738999846635,-1265.01,0.00011643,2]
[352212040,1738999846644,-500.0,0.00011643,2]
[352212041,1738999846654,-151.0,0.00011643,2]
[352212042,1738999846664,-500.0,0.00011643,2]
[352212043,1738999846673,-151.0,0.00011643,2]
[352212044,1738999846684,-500.0,0.00011643,2]
[352212045,1738999846694,-500.0,0.00011643,2]
[352212046,1738999846705,-621.85,0.00011643,2]
[352212047,1738999846714,-1053.63,0.00011643,2]
[352212048,1738999846723,-588.64550532,0.00011643,2]
[352212049,1738999846733,-500.0,0.00011643,2]
[352212050,1738999846742,-798.68,0.00011643,2]
[352212051,1738999846751,-500.0,0.00011643,2]
[352212052,1738999846761,-712.89,0.00011643,2]
[352212053,1738999846770,-500.0,0.00011643,2]
[352212054,1738999846780,-536.32,0.00011643,2]
[352212055,1738999846789,-151.0,0.00011643,2]
[352212056,1738999846799,-500.0,0.00011643,2]
[352212057,1738999846809,-500.0,0.00011643,2]
[352212058,1738999846818,-500.0,0.00011643,2]
[352212059,1738999846828,-759.03,0.00011643,2]
[352212060,1738999846838,-151.0,0.00011643,2]
[352212061,1738999846848,-500.0,0.00011643,2]
[352212062,1738999846857,-1117.37,0.00011643,2]
[352212063,1738999846868,-3762.27,0.00011643,2]
[352212064,1738999846878,-1619.3,0.00011643,2]
[352212065,1738999846889,-2379.14,0.00011643,2]
[352212066,1738999846898,-500.0,0.00011643,2]
[352212067,1738999846908,-222.94555897,0.00011643,2]
[352212068,1738999846919,-1213.89,0.00011643,2]
[352212069,1738999846934,-668.02,0.00011643,2]
[352212070,1738999846943,-3393.86,0.00011643,2]
[352212071,1738999846955,-500.0,0.00011643,2]
[352212072,1738999846967,-4286.13,0.00011643,2]
[352212073,1738999846976,-1604.86,0.00011643,2]
[352212074,1738999846987,-500.0,0.00011643,2]
[352212075,1738999846997,-1243.47,0.00011643,2]
[352212076,1738999847008,-500.0,0.00011643,2]
[352212077,1738999847017,-3090.98,0.00011643,2]
[352212078,1738999847028,-500.0,0.00011643,2]
[352212079,1738999847038,-1307.31,0.00011643,2]
[352212080,1738999847047,-500.0,0.00011643,2]
[352212081,1738999847056,-15693.83,0.00011643,2]
[352212082,1738999847066,-500.0,0.00011643,2]
[352212083,1738999847075,-500.0,0.00011643,2]
[352212084,1738999847085,-500.0,0.00011643,2]
[352212085,1738999847094,-500.0,0.00011643,2]
[352212086,1738999847104,-867.44,0.00011643,2]
[352212087,1738999847114,-51875.84,0.00011643,2]
[352212088,1738999847123,-1780.05,0.00011643,2]
[352212089,1738999847132,-500.0,0.00011643,2]
[352212090,1738999847141,-500.0,0.00011643,2]
[352212091,1738999847150,-1750.32,0.00011643,2]
[352212092,1738999847160,-3837.46,0.00011643,2]
[352212093,1738999847169,-500.0,0.00011643,2]
[352212094,1738999847178,-2350.46,0.00011643,2]
[352212095,1738999847188,-500.0,0.00011643,2]
[352212096,1738999847197,-2262.77,0.00011643,2]
[352212097,1738999847208,-1892.11,0.00011643,2]
[352212098,1738999847218,-500.0,0.00011643,2]
[352212099,1738999847227,-744.82,0.00011643,2]
[352212100,1738999847236,-1322.15,0.00011643,2]
[352212101,1738999847245,-500.0,0.00011643,2]
[352212102,1738999847255,-1214.94,0.00011643,2]
[352212103,1738999847264,-500.0,0.00011643,2]
[352212104,1738999847273,-988.32,0.00011643,2]
[352212105,1738999847282,-151.0,0.00011643,2]
[352212106,1738999847292,-500.0,0.00011643,2]
[352212107,1738999847301,-500.0,0.00011643,2]
[352212108,1738999847311,-151.0,0.00011643,2]
[352212109,1738999847320,-500.0,0.00011643,2]
[352212110,1738999847329,-341.74936037,0.00011643,2]
[352212111,1738999847338,-500.0,0.00011643,2]
[352212112,1738999847348,-151.0,0.00011643,2]
[352212113,1738999847357,-151.0,0.00011643,2]
[352212114,1738999847366,-500.0,0.00011643,2]
[352212115,1738999847375,-500.0,0.00011643,2]
[352212116,1738999847384,-151.0,0.00011643,2]
[352212117,1738999847393,-1263.96,0.00011643,2]
[352212118,1738999847403,-1785.38,0.00011643,2]
[352212119,1738999847412,-500.0,0.00011643,2]
[352212120,1738999847421,-2973.06,0.00011643,2]
[352212121,1738999847430,-687.97,0.00011643,2]
[352212122,1738999847440,-500.0,0.00011643,2]
[352212123,1738999847449,-2935.7,0.00011643,2]
[352212124,1738999847459,-500.0,0.00011643,2]
[352212125,1738999847468,-500.0,0.00011643,2]
[352212126,1738999847477,-7041.77,0.00011643,2]
[352212127,1738999847486,-500.0,0.00011643,2]
[352212128,1738999847496,-500.0,0.00011643,2]
[352212129,1738999847505,-846.21,0.00011643,2]
[352212130,1738999847514,-1714.59,0.00011643,2]
[352212131,1738999847523,-1333.51,0.00011643,2]
[352212132,1738999847532,-460.0,0.00011643,2]
[352212133,1738999847542,-665.0,0.00011643,2]
[352212134,1738999847551,-151.0,0.00011643,2]
[352212135,1738999847560,-500.0,0.00011643,2]
[352212136,1738999847570,-766.04,0.00011643,2]
[352212137,1738999847579,-609.09,0.00011643,2]
[352212138,1738999847588,-1366.96,0.00011643,2]
[352212139,1738999847729,-500.0,0.00011643,2]
[352212140,1738999847740,-500.0,0.00011643,2]
[352212141,1738999847750,-3738.07,0.00011643,2]
[352212142,1738999847760,-500.0,0.00011643,2]
[352212143,1738999847771,-500.0,0.00011643,2]
[352212144,1738999847781,-4096.14,0.00011643,2]
[352212145,1738999847791,-500.0,0.00011643,2]
[352212146,1738999847800,-500.0,0.00011643,2]
[352212147,1738999847809,-425.23565614,0.00011643,2]
[352212148,1738999847819,-500.0,0.00011643,2]
[352212149,1738999847828,-500.0,0.00011643,2]
[352212150,1738999847838,-500.0,0.00011643,2]
[352212151,1738999847847,-500.0,0.00011643,2]
[352212152,1738999847857,-531.19685,0.0001178,2]
[352212153,1738999847866,-151.0,0.0001178,2]
[352212154,1738999847875,-245.701619,0.0001178,2]
[352212155,1738999847884,-245.701619,0.0001178,2]
[352212156,1738999847894,-572.73,0.0001178,2]
[352212157,1738999847903,-500.0,0.0001178,2]
[352212158,1738999847914,-500.0,0.0001178,2]
[352212159,1738999847927,-500.0,0.0001178,2]
[352212160,1738999847936,-359.62503,0.0001178,2]
[352212161,1738999847946,-359.62503,0.0001178,2]
[352212162,1738999847957,-500.0,0.0001178,2]
[352212163,1738999847969,-787.58,0.0001178,2]
[352212164,1738999847980,-500.0,0.0001178,2]
[352212165,1738999847989,-1238.54,0.0001178,2]
[352212166,1738999848001,-439.13,0.0001178,2]
[352212167,1738999848011,-549.10874071,0.0001178,2]
[352212168,1738999848021,-151.0,0.0001178,2]
[352212169,1738999848031,-500.0,0.0001178,2]
[352212170,1738999848042,-500.0,0.0001178,2]
[352212171,1738999848052,-500.0,0.0001178,2]
[352212172,1738999848062,-500.0,0.0001178,2]
[352212173,1738999848072,-500.0,0.0001178,2]
[352212174,1738999848084,-151.0,0.0001178,2]
[352212175,1738999848093,-151.0,0.0001178,2]
[352212176,1738999848103,-500.0,0.0001178,2]
[352212177,1738999848112,-500.0,0.0001178,2]
[352212178,1738999848122,-500.0,0.0001178,2]
[352212179,1738999848131,-413.58964998,0.0001178,2]
[352212180,1738999848141,-951.9,0.0001178,2]
[352212181,1738999848150,-500.0,0.0001178,2]
[352212182,1738999848159,-151.0,0.0001178,2]
[352212183,1738999848169,-889.27,0.0001178,2]
[352212184,1738999848178,-204.187798,0.0001178,2]
[352212185,1738999848187,-815.22,0.0001178,2]
[352212186,1738999848197,-204.187798,0.0001178,2]
[352212187,1738999848208,-214.08338915,0.0001178,2]
[352212188,1738999848219,-500.0,0.0001178,2]
[352212189,1738999848229,-500.0,0.0001178,2]
[352212190,1738999848239,-500.0,0.0001178,2]
[352212191,1738999848249,-500.0,0.0001178,2]
[352212192,1738999848259,-649.54,0.0001178,2]
[352212193,1738999848269,-743.18,0.0001178,2]
[352212194,1738999848280,-500.0,0.0001178,2]
[352212195,1738999848290,-500.0,0.0001178,2]
[352212196,1738999848300,-500.0,0.0001178,2]
[352212197,1738999848310,-1497.02,0.0001178,2]
[352212198,1738999848320,-500.0,0.0001178,2]
[352212199,1738999848331,-500.0,0.0001178,2]
[352212200,1738999848342,-500.0,0.0001178,2]
[352212201,1738999848352,-500.0,0.0001178,2]
[352212202,1738999848362,-1513.32,0.0001178,2]
[352212203,1738999848372,-500.0,0.0001178,2]
[352212204,1738999848382,-1090.89,0.0001178,2]
[352212205,1738999848392,-500.0,0.0001178,2]
[352212206,1738999848403,-500.0,0.0001178,2]
[352212207,1738999848413,-500.0,0.0001178,2]
[352212208,1738999848424,-500.0,0.0001178,2]
[352212209,1738999848434,-693.0,0.0001178,2]
[352212210,1738999848444,-500.0,0.0001178,2]
[352212211,1738999848457,-500.0,0.0001178,2]
[352212212,1738999848467,-500.0,0.0001178,2]
[352212213,1738999848477,-151.0,0.0001178,2]
[352212214,1738999848489,-500.0,0.0001178,2]
[352212215,1738999848500,-1747.5,0.0001178,2]
[352212216,1738999848511,-500.0,0.0001178,2]
[352212217,1738999848522,-500.0,0.0001178,2]
[352212218,1738999848532,-151.0,0.0001178,2]
[352212219,1738999848543,-271.22721,0.0001178,2]
[352212220,1738999848554,-221.643454,0.0001178,2]
[352212221,1738999848565,-271.22721,0.0001178,2]
[352212222,1738999848575,-221.643454,0.0001178,2]
[352212223,1738999848585,-500.0,0.0001178,2]
[352212224,1738999848595,-500.0,0.0001178,2]
[352212225,1738999848606,-578.4468197,0.0001178,2]
[352212226,1738999848616,-500.0,0.0001178,2]
[352212227,1738999848627,-500.0,0.0001178,2]
[352212228,1738999848638,-1265.01,0.0001178,2]
[352212229,1738999848648,-500.0,0.0001178,2]
[352212230,1738999848659,-151.0,0.0001178,2]
[352212231,1738999848669,-500.0,0.0001178,2]
[352212232,1738999848680,-500.0,0.0001178,2]
[352212233,1738999848690,-621.85,0.0001178,2]
[352212234,1738999848700,-500.0,0.0001178,2]
[352212235,1738999848712,-1053.63,0.0001178,2]
[352212236,1738999848723,-500.0,0.0001178,2]
[352212237,1738999848733,-798.68,0.0001178,2]
[352212238,1738999848744,-368.27863776,0.0001178,2]
[352212239,1738999848754,-712.89,0.0001178,2]
[352212240,1738999848765,-500.0,0.0001178,2]
[352212241,1738999848775,-536.32,0.0001178,2]
[352212242,1738999848784,-151.0,0.0001178,2]
[352212243,1738999848795,-500.0,0.0001178,2]
[352212244,1738999848805,-500.0,0.0001178,2]
[352212245,1738999848815,-500.0,0.0001178,2]
[352212246,1738999848824,-759.03,0.0001178,2]
[352212247,1738999848834,-151.0,0.0001178,2]
[352212248,1738999848843,-500.0,0.0001178,2]
[352212249,1738999848854,-1117.37,0.0001178,2]
[352212250,1738999848863,-3762.27,0.0001178,2]
[352212251,1738999848872,-1619.3,0.0001178,2]
[352212252,1738999848882,-2379.14,0.0001178,2]
[352212253,1738999848893,-500.0,0.0001178,2]
[352212254,1738999848903,-1213.89,0.0001178,2]
[352212255,1738999848913,-668.02,0.0001178,2]
[352212256,1738999848925,-3393.86,0.0001178,2]
[352212257,1738999848935,-500.0,0.0001178,2]
[352212258,1738999848946,-4286.13,0.0001178,2]
[352212259,1738999848959,-1604.86,0.0001178,2]
[352212260,1738999848971,-500.0,0.0001178,2]
[352212261,1738999848982,-1243.47,0.0001178,2]
[352212262,1738999848993,-500.0,0.0001178,2]
[352212263,1738999849006,-3090.98,0.0001178,2]
[352212264,1738999849016,-500.0,0.0001178,2]
[352212265,1738999849026,-1307.31,0.0001178,2]
[352212266,1738999849036,-500.0,0.0001178,2]
[352212267,1738999849046,-15693.83,0.0001178,2]
[352212268,1738999849057,-500.0,0.0001178,2]
[352212269,1738999849067,-500.0,0.0001178,2]
[352212270,1738999849079,-500.0,0.0001178,2]
[352212271,1738999849090,-500.0,0.0001178,2]
[352212272,1738999849101,-867.44,0.0001178,2]
[352212273,1738999849110,-51875.84,0.0001178,2]
[352212274,1738999849120,-1780.05,0.0001178,2]
[352212275,1738999849130,-500.0,0.0001178,2]
[352212276,1738999849140,-500.0,0.0001178,2]
[352212277,1738999849151,-1750.32,0.0001178,2]
[352212278,1738999849161,-3837.46,0.0001178,2]
[352212279,1738999849171,-500.0,0.0001178,2]
[352212280,1738999849180,-2350.46,0.0001178,2]
[352212281,1738999849190,-500.0,0.0001178,2]
[352212282,1738999849200,-2262.77,0.0001178,2]
[352212283,1738999849210,-1892.11,0.0001178,2]
[352212284,1738999849221,-500.0,0.0001178,2]
[352212285,1738999849231,-744.82,0.0001178,2]
[352212286,1738999849241,-1322.15,0.0001178,2]
[352212287,1738999849251,-500.0,0.0001178,2]
[352212288,1738999849260,-1214.94,0.0001178,2]
[352212289,1738999849270,-500.0,0.0001178,2]
[352212290,1738999849280,-988.32,0.0001178,2]
[352212291,1738999849290,-151.0,0.0001178,2]
[352212292,1738999849300,-500.0,0.0001178,2]
[352212293,1738999849310,-500.0,0.0001178,2]
[352212294,1738999849320,-151.0,0.0001178,2]
[352212295,1738999849331,-500.0,0.0001178,2]
[352212296,1738999849342,-500.0,0.0001178,2]
[352212297,1738999849352,-151.0,0.0001178,2]
[352212298,1738999849361,-500.0,0.0001178,2]
[352212299,1738999849371,-500.0,0.0001178,2]
[352212300,1738999849381,-151.0,0.0001178,2]
[352212301,1738999849391,-1263.96,0.0001178,2]
[352212302,1738999849400,-1785.38,0.0001178,2]
[352212303,1738999849410,-500.0,0.0001178,2]
[352212304,1738999849420,-2973.06,0.0001178,2]
[352212305,1738999849429,-687.97,0.0001178,2]
[352212306,1738999849439,-500.0,0.0001178,2]
[352212307,1738999849449,-2935.7,0.0001178,2]
[352212308,1738999849460,-500.0,0.0001178,2]
[352212309,1738999849470,-500.0,0.0001178,2]
[352212310,1738999849488,-7041.77,0.0001178,2]
[352212311,1738999849498,-500.0,0.0001178,2]
[352212312,1738999849509,-500.0,0.0001178,2]
[352212313,1738999849520,-846.21,0.0001178,2]
[352212314,1738999849531,-1714.59,0.0001178,2]
[352212315,1738999849541,-1333.51,0.0001178,2]
[352212316,1738999849551,-665.0,0.0001178,2]
[352212317,1738999849562,-151.0,0.0001178,2]
[352212318,1738999849573,-560.96,0.0001178,2]
[352212319,1738999849583,-766.04,0.0001178,2]
[352212320,1738999849593,-609.09,0.0001178,2]
[352212321,1738999849603,-1366.96,0.0001178,2]
[352212322,1738999849613,-500.0,0.0001178,2]
[352212323,1738999849623,-500.0,0.0001178,2]
[352212324,1738999849634,-3738.07,0.0001178,2]
[352212325,1738999849643,-500.0,0.0001178,2]
[352212326,1738999849653,-500.0,0.0001178,2]
[352212327,1738999849664,-4096.14,0.0001178,2]
[352212328,1738999849674,-500.0,0.0001178,2]
[352212329,1738999849684,-500.0,0.0001178,2]
[352212330,1738999849694,-500.0,0.0001178,2]
[352212331,1738999849703,-345.20026415,0.0001178,2]
[352212332,1738999849713,-500.0,0.0001178,2]
[352212333,1738999849722,-500.0,0.0001178,2]
[352212334,1738999849732,-13265.39216455,0.00011888,2]
[352212335,1738999849741,-189.822955,0.0001189,2]
[352212336,1738999849751,-531.19685,0.000119,2]
[352212337,1738999849761,-151.0,0.000119,2]
[352212338,1738999849771,-245.701619,0.000119,2]
[352212339,1738999849780,-245.701619,0.000119,2]
[352212340,1738999849790,-359.62503,0.000119,2]
[352212341,1738999849799,-359.62503,0.000119,2]
[352212342,1738999849810,-572.73,0.00011917,2]
[352212343,1738999849819,-500.0,0.00011917,2]
[352212344,1738999849829,-787.58,0.00011917,2]
[352212345,1738999849839,-1238.54,0.00011917,2]
[352212346,1738999849849,-321.07983664,0.00011917,2]
[352212347,1738999849858,-500.0,0.00011917,2]
[352212348,1738999849868,-514.16,0.00011917,2]
[352212349,1738999849878,-500.0,0.00011917,2]
[352212350,1738999849887,-500.0,0.00011917,2]
[352212351,1738999849897,-503.18202209,0.00011917,2]
[352212352,1738999849907,-500.0,0.00011917,2]
[352212353,1738999849916,-500.0,0.00011917,2]
[352212354,1738999849931,-500.0,0.00011917,2]
[352212355,1738999849941,-951.9,0.00011917,2]
[352212356,1738999849950,-500.0,0.00011917,2]
[352212357,1738999849963,-889.27,0.00011917,2]
[352212358,1738999849973,-815.22,0.00011917,2]
[352212359,1738999849983,-172.129493,0.00011917,2]
[352212360,1738999849993,-172.129493,0.00011917,2]
[352212361,1738999850003,-500.0,0.00011917,2]
[352212362,1738999850013,-500.0,0.00011917,2]
[352212363,1738999850023,-500.0,0.00011917,2]
[352212364,1738999850032,-500.0,0.00011917,2]
[352212365,1738999850042,-649.54,0.00011917,2]
[352212366,1738999850051,-743.18,0.00011917,2]
[352212367,1738999850060,-500.0,0.00011917,2]
[352212368,1738999850069,-504.76,0.00011917,2]
[352212369,1738999850079,-500.0,0.00011917,2]
[352212370,1738999850088,-1497.02,0.00011917,2]
[352212371,1738999850097,-151.0,0.00011917,2]
[352212372,1738999850107,-500.0,0.00011917,2]
[352212373,1738999850116,-500.0,0.00011917,2]
[352212374,1738999850125,-500.0,0.00011917,2]
[352212375,1738999850135,-500.0,0.00011917,2]
[352212376,1738999850144,-1513.32,0.00011917,2]
[352212377,1738999850153,-500.0,0.00011917,2]
[352212378,1738999850163,-1090.89,0.00011917,2]
[352212379,1738999850173,-500.0,0.00011917,2]
[352212380,1738999850182,-500.0,0.00011917,2]
[352212381,1738999850192,-500.0,0.00011917,2]
[352212382,1738999850202,-500.0,0.00011917,2]
[352212383,1738999850212,-435.42802,0.00011917,2]
[352212384,1738999850221,-435.42802,0.00011917,2]
[352212385,1738999850231,-693.0,0.00011917,2]
[352212386,1738999850240,-500.0,0.00011917,2]
[352212387,1738999850250,-323.50840547,0.00011917,2]
[352212388,1738999850259,-155.276126,0.00011917,2]
[352212389,1738999850269,-500.0,0.00011917,2]
[352212390,1738999850280,-151.0,0.00011917,2]
[352212391,1738999850290,-1747.5,0.00011917,2]
[352212392,1738999850299,-500.0,0.00011917,2]
[352212393,1738999850309,-500.0,0.00011917,2]
[352212394,1738999850318,-500.0,0.00011917,2]
[352212395,1738999850327,-500.0,0.00011917,2]
[352212396,1738999850337,-500.0,0.00011917,2]
[352212397,1738999850346,-500.0,0.00011917,2]
[352212398,1738999850356,-1265.01,0.00011917,2]
[352212399,1738999850365,-500.0,0.00011917,2]
[352212400,1738999850375,-151.0,0.00011917,2]
[352212401,1738999850385,-500.0,0.00011917,2]
[352212402,1738999850395,-151.0,0.00011917,2]
[352212403,1738999850404,-500.0,0.00011917,2]
[352212404,1738999850414,-621.85,0.00011917,2]
[352212405,1738999850424,-500.0,0.00011917,2]
[352212406,1738999850434,-1053.63,0.00011917,2]
[352212407,1738999850443,-500.0,0.00011917,2]
[352212408,1738999850452,-798.68,0.00011917,2]
[352212409,1738999850462,-712.89,0.00011917,2]
[352212410,1738999850471,-439.80632446,0.00011917,2]
[352212411,1738999850481,-536.32,0.00011917,2]
[352212412,1738999850490,-295.40786,0.00011917,2]
[352212413,1738999850500,-500.0,0.00011917,2]
[352212414,1738999850509,-500.0,0.00011917,2]
[352212415,1738999850519,-500.0,0.00011917,2]
[352212416,1738999850528,-759.03,0.00011917,2]
[352212417,1738999850538,-500.0,0.00011917,2]
[352212418,1738999850547,-1117.37,0.00011917,2]
[352212419,1738999850556,-3762.27,0.00011917,2]
[352212420,1738999850566,-1619.3,0.00011917,2]
[352212421,1738999850575,-2379.14,0.00011917,2]
[352212422,1738999850585,-500.0,0.00011917,2]
[352212423,1738999850594,-1213.89,0.00011917,2]
[352212424,1738999850604,-668.02,0.00011917,2]
[352212425,1738999850613,-3393.86,0.00011917,2]
[352212426,1738999850622,-500.0,0.00011917,2]
[352212427,1738999850632,-4286.13,0.00011917,2]
[352212428,1738999850642,-1604.86,0.00011917,2]
[352212429,1738999850651,-500.0,0.00011917,2]
[352212430,1738999850777,-1243.47,0.00011917,2]
[352212431,1738999850787,-500.0,0.00011917,2]
[352212432,1738999850797,-3090.98,0.00011917,2]
[352212433,1738999850806,-500.0,0.00011917,2]
[352212434,1738999850815,-1307.31,0.00011917,2]
[352212435,1738999850824,-500.0,0.00011917,2]
[352212436,1738999850834,-15693.83,0.00011917,2]
[352212437,1738999850843,-500.0,0.00011917,2]
[352212438,1738999850852,-500.0,0.00011917,2]
[352212439,1738999850861,-500.0,0.00011917,2]
[352212440,1738999850870,-500.0,0.00011917,2]
[352212441,1738999850879,-867.44,0.00011917,2]
[352212442,1738999850889,-51875.84,0.00011917,2]
[352212443,1738999850899,-1780.05,0.00011917,2]
[352212444,1738999850908,-500.0,0.00011917,2]
[352212445,1738999850920,-500.0,0.00011917,2]
[352212446,1738999850932,-1750.32,0.00011917,2]
[352212447,1738999850942,-3837.46,0.00011917,2]
[352212448,1738999850952,-500.0,0.00011917,2]
[352212449,1738999850963,-2350.46,0.00011917,2]
[352212450,1738999850972,-500.0,0.00011917,2]
[352212451,1738999850982,-2262.77,0.00011917,2]
[352212452,1738999850991,-1892.11,0.00011917,2]
[352212453,1738999851003,-500.0,0.00011917,2]
[352212454,1738999851012,-500.0,0.00011917,2]
[352212455,1738999851021,-150.11,0.00011917,2]
[352212456,1738999851031,-744.82,0.00011917,2]
[352212457,1738999851040,-150.26363732,0.00011917,2]
[352212458,1738999851049,-1322.15,0.00011917,2]
[352212459,1738999851058,-500.0,0.00011917,2]
[352212460,1738999851068,-201.18285628,0.00011917,2]
[352212461,1738999851078,-1214.94,0.00011917,2]
[352212462,1738999851087,-150.23382603,0.00011917,2]
[352212463,1738999851096,-500.0,0.00011917,2]
[352212464,1738999851105,-150.24223196,0.00011917,2]
[352212465,1738999851115,-150.11,0.00011917,2]
[352212466,1738999851124,-988.32,0.00011917,2]
[352212467,1738999851134,-150.11,0.00011917,2]
[352212468,1738999851143,-150.11,0.00011917,2]
[352212469,1738999851152,-151.0,0.00011917,2]
[352212470,1738999851161,-150.12,0.00011917,2]
[352212471,1738999851170,-150.24010201,0.00011917,2]
[352212472,1738999851180,-500.0,0.00011917,2]
[352212473,1738999851189,-378.90482166,0.00011917,2]
[352212474,1738999851198,-151.0,0.00011917,2]
[352212475,1738999851208,-500.0,0.00011917,2]
[352212476,1738999851217,-788.0,0.00011917,2]
[352212477,1738999851227,-500.0,0.00011917,2]
[352212478,1738999851236,-150.11,0.00011917,2]
[352212479,1738999851246,-150.11,0.00011917,2]
[352212480,1738999851255,-500.0,0.00011917,2]
[352212481,1738999851265,-500.0,0.00011917,2]
[352212482,1738999851274,-151.0,0.00011917,2]